fUST/lending_fUST_20250604
["ID","MTS","AMOUNT","RATE_DAILY","PERIOD"]
[364060946,1748981438965,-362.79391183,0.0001726,2]
[364060947,1748981438975,-420.0,0.0001726,2]
[364060948,1748981438984,-420.0,0.0001726,2]
[364060949,1748981438994,-420.0,0.0001726,2]
[364060950,1748981439004,-410.0,0.0001726,2]
[364060951,1748981439013,-3071.5,0.0001726,2]
[364060952,1748981439025,-3071.5,0.0001726,2]
[364060953,1748981439037,-3071.5,0.0001726,2]
[364060954,1748981439047,-3071.5,0.0001726,2]
[364060955,1748981439057,-420.0,0.0001726,2]
[364060956,1748981439067,-410.0,0.0001726,2]
[364060957,1748981439080,-420.0,0.0001726,2]
[364060958,1748981439090,-420.0,0.0001726,2]
[364060959,1748981439099,-440.0,0.0001726,2]
[364060960,1748981439109,-420.0,0.0001726,2]
[364060961,1748981439119,-420.0,0.0001726,2]
[364060962,1748981439128,-410.0,0.0001726,2]
[364060963,1748981439139,-440.0,0.0001726,2]
[364060964,1748981439148,-157.83763468,0.0001726,2]
[364060965,1748981439158,-440.0,0.0001726,2]
[364060966,1748981439168,-440.0,0.0001726,2]
[364060967,1748981439178,-440.0,0.0001726,2]
[364060968,1748981439188,-420.0,0.0001726,2]
[364060969,1748981439197,-420.0,0.0001726,2]
[364060970,1748981439209,-440.0,0.0001726,2]
[364060971,1748981439220,-420.0,0.0001726,2]
[364060972,1748981439230,-440.0,0.0001726,2]
[364060973,1748981439241,-440.0,0.0001726,2]
[364060974,1748981439251,-420.0,0.0001726,2]
[364060975,1748981439261,-443.46,0.0001726,2]
[364060976,1748981439272,-440.0,0.0001726,2]
[364060977,1748981439281,-440.0,0.0001726,2]
[364060978,1748981439291,-380.0,0.0001726,2]
[364060979,1748981439301,-440.0,0.0001726,2]
[364060980,1748981439311,-440.0,0.0001726,2]
[364060981,1748981439320,-440.0,0.0001726,2]
[364060982,1748981439330,-444.89095567,0.0001726,2]
[364060983,1748981439339,-500.21,0.0001726,2]
[364060984,1748981439349,-440.0,0.0001726,2]
[364060985,1748981439359,-420.0,0.0001726,2]
[364060987,1748981439516,-420.0,0.0001726,2]
[364060988,1748981439528,-420.0,0.0001726,2]
[364060989,1748981439538,-440.0,0.0001726,2]
[364060990,1748981439549,-263.6,0.0001726,2]
[364060991,1748981439560,-420.0,0.0001726,2]
[364060992,1748981439573,-440.0,0.0001726,2]
[364060993,1748981439583,-461.58183067,0.0001726,2]
[364060994,1748981439593,-440.0,0.0001726,2]
[364060995,1748981439603,-440.0,0.0001726,2]
[364060996,1748981439613,-420.0,0.0001726,2]
[364060997,1748981439623,-440.0,0.0001726,2]
[364060998,1748981439633,-440.0,0.0001726,2]
[364060999,1748981439642,-440.0,0.0001726,2]
[364061000,1748981439653,-323.73292868,0.0001726,2]
[364061001,1748981439663,-440.0,0.0001726,2]
[364061002,1748981439673,-420.0,0.0001726,2]
[364061003,1748981439684,-440.0,0.0001726,2]
[364061004,1748981439694,-460.29,0.0001726,2]
[364061006,1748981439704,-463.98719117,0.0001726,2]
[364061008,1748981439714,-420.0,0.0001726,2]
[364061010,1748981439724,-637.66,0.0001726,2]
[364061012,1748981439734,-420.0,0.0001726,2]
[364061014,1748981439744,-440.0,0.0001726,2]
[364061016,1748981439754,-420.0,0.0001726,2]
[364061018,1748981439764,-420.0,0.0001726,2]
[364061020,1748981439774,-420.0,0.0001726,2]
[364061022,1748981439783,-440.0,0.0001726,2]
[364061024,1748981439793,-440.0,0.0001726,2]
[364061026,1748981439803,-440.0,0.0001726,2]
[364061028,1748981439813,-420.0,0.0001726,2]
[364061030,1748981439823,-420.0,0.0001726,2]
[364061032,1748981439833,-440.0,0.0001726,2]
[364061034,1748981439842,-440.0,0.0001726,2]
[364061036,1748981439852,-440.52,0.0001726,2]
[364061038,1748981439861,-440.0,0.0001726,2]
[364061040,1748981439871,-440.0,0.0001726,2]
[364061042,1748981439881,-420.0,0.0001726,2]
[364061044,1748981439891,-471.99,0.0001726,2]
[364061046,1748981439900,-863.78769645,0.00017452,2]
[364061048,1748981439910,-482.74879491,0.00017534,2]
[364061050,1748981439920,-410.0,0.00017534,2]
[364061053,1748981439930,-420.0,0.00017534,2]
[364061054,1748981439940,-410.0,0.00017534,2]
[364061055,1748981439950,-440.0,0.00017534,2]
[364061056,1748981439960,-440.0,0.00017534,2]
[364061057,1748981439970,-440.0,0.00017534,2]
[364061058,1748981439980,-440.0,0.00017534,2]
[364061059,1748981439990,-443.46,0.00017534,2]
[364061060,1748981439999,-440.0,0.00017534,2]
[364061061,1748981440008,-440.0,0.00017534,2]
[364061062,1748981440027,-440.0,0.00017534,2]
[364061063,1748981440039,-420.0,0.00017534,2]
[364061064,1748981440048,-175.85231248,0.00017534,2]
[364061065,1748981440058,-500.21,0.00017534,2]
[364061066,1748981440068,-410.0,0.00017534,2]
[364061067,1748981440078,-440.0,0.00017534,2]
[364061068,1748981440087,-410.0,0.00017534,2]
[364061069,1748981440096,-440.0,0.00017534,2]
[364061070,1748981440107,-440.0,0.00017534,2]
[364061071,1748981440117,-383.3792538,0.00017534,2]
[364061072,1748981440129,-440.0,0.00017534,2]
[364061073,1748981440142,-440.0,0.00017534,2]
[364061074,1748981440152,-410.0,0.00017534,2]
[364061075,1748981440162,-440.0,0.00017534,2]
[364061076,1748981440172,-460.29,0.00017534,2]
[364061077,1748981440182,-155.0,0.00017534,2]
[364061078,1748981440192,-637.66,0.00017534,2]
[364061079,1748981440201,-440.0,0.00017534,2]
[364061080,1748981440213,-440.0,0.00017534,2]
[364061081,1748981440222,-573.12314429,0.00017534,2]
[364061082,1748981440232,-440.0,0.00017534,2]
[364061083,1748981440242,-3145.3,0.00017534,2]
[364061084,1748981440252,-3145.3,0.00017534,2]
[364061085,1748981440263,-3145.3,0.00017534,2]
[364061086,1748981440274,-420.0,0.00017534,2]
[364061087,1748981440284,-580.38,0.00017534,2]
[364061088,1748981440296,-440.0,0.00017534,2]
[364061089,1748981440306,-410.0,0.00017534,2]
[364061090,1748981440317,-863.78769645,0.00017728,2]
[364061091,1748981440326,-3145.3,0.00017728,2]
[364061092,1748981440335,-596.78,0.00017798,3]
[364061093,1748981440344,-440.0,0.00017808,2]
[364061094,1748981440354,-440.0,0.00017808,2]
[364061095,1748981440364,-440.0,0.00017808,2]
[364061096,1748981440374,-440.0,0.00017808,2]
[364061097,1748981440383,-443.46,0.00017808,2]
[364061098,1748981440393,-440.0,0.00017808,2]
[364061099,1748981440402,-440.0,0.00017808,2]
[364061100,1748981440412,-440.0,0.00017808,2]
[364061101,1748981440422,-500.21,0.00017808,2]
[364061102,1748981440433,-498.60808731,0.00017808,2]
[364061103,1748981440443,-440.0,0.00017808,2]
[364061104,1748981440454,-440.0,0.00017808,2]
[364061105,1748981440463,-440.0,0.00017808,2]
[364061106,1748981440473,-246.34390818,0.00017808,2]
[364061107,1748981440482,-440.0,0.00017808,2]
[364061108,1748981440492,-460.29,0.00017808,2]
[364061109,1748981440502,-637.66,0.00017808,2]
[364061110,1748981440511,-431.22,0.00017808,2]
[364061111,1748981440521,-440.0,0.00017808,2]
[364061112,1748981440531,-440.0,0.00017808,2]
[364061113,1748981440540,-440.0,0.00017808,2]
[364061114,1748981440550,-863.78769645,0.00018003,2]
[364061115,1748981440561,-440.0,0.00018082,2]
[364061116,1748981440571,-440.0,0.00018082,2]
[364061117,1748981440580,-440.0,0.00018082,2]
[364061118,1748981440590,-380.0,0.00018082,2]
[364061119,1748981440600,-443.46,0.00018082,2]
[364061120,1748981440610,-157.7,0.00018082,2]
[364061121,1748981440620,-440.0,0.00018082,2]
[364061122,1748981440629,-440.0,0.00018082,2]
[364061123,1748981440638,-500.21,0.00018082,2]
[364061124,1748981440648,-440.0,0.00018082,2]
[364061125,1748981440658,-440.0,0.00018082,2]
[364061126,1748981440669,-440.0,0.00018082,2]
[364061127,1748981440679,-207.26800488,0.00018082,2]
[364061128,1748981440688,-460.29,0.00018082,2]
[364061129,1748981440699,-155.0,0.00018082,2]
[364061130,1748981440709,-637.66,0.00018082,2]
[364061131,1748981440719,-440.0,0.00018082,2]
[364061132,1748981440729,-206.72,0.00018082,2]
[364061133,1748981440739,-440.0,0.00018082,2]
[364061134,1748981440750,-200.5984606,0.00018248,2]
[364061135,1748981440760,-198.47788284,0.00018248,2]
[364061136,1748981440770,-151.0,0.00018248,2]
[364061137,1748981440779,-201.06596654,0.00018248,2]
[364061138,1748981440789,-198.0,0.00018248,2]
[364061139,1748981440798,-151.0,0.00018248,2]
[364061140,1748981440808,-151.0,0.00018248,2]
[364061141,1748981440818,-221.87044723,0.00018248,2]
[364061142,1748981440827,-152.4128527,0.00018248,2]
[364061143,1748981440837,-159.41906259,0.00018248,2]
[364061144,1748981440847,-151.0,0.00018248,2]
[364061145,1748981440857,-500.0,0.00018248,2]
[364061146,1748981440867,-151.49464071,0.00018248,2]
[364061147,1748981440876,-151.0,0.00018248,2]
[364061148,1748981440887,-198.0,0.00018275,2]
[364061149,1748981440896,-151.0,0.00018275,2]
[364061150,1748981440906,-155.12556543,0.00018275,2]
[364061151,1748981440917,-501.48568543,0.00018275,2]
[364061152,1748981440927,-151.3680784,0.00018275,2]
[364061153,1748981440937,-863.78769645,0.00018279,2]
[364061154,1748981440947,-151.0,0.00018303,2]
[364061155,1748981440958,-248.08417531,0.0001833,2]
[364061156,1748981440968,-440.0,0.00018356,2]
[364061157,1748981440978,-440.0,0.00018356,2]
[364061158,1748981440988,-440.0,0.00018356,2]
[364061159,1748981440998,-443.46,0.00018356,2]
[364061160,1748981441008,-261.16,0.00018356,2]
[364061161,1748981441018,-220.04,0.00018356,2]
[364061162,1748981441029,-500.21,0.00018356,2]
[364061163,1748981441040,-566.90231656,0.00018356,2]
[364061164,1748981441050,-440.0,0.00018356,2]
[364061165,1748981441060,-440.0,0.00018356,2]
[364061166,1748981441072,-460.29,0.00018356,2]
[364061167,1748981441082,-637.66,0.00018356,2]
[364061168,1748981441092,-440.0,0.00018356,2]
[364061169,1748981441102,-440.0,0.00018356,2]
[364061170,1748981441113,-212.86879254,0.00018385,2]
[364061171,1748981441124,-12670.76136593,0.00018385,2]
[364061172,1748981441134,-160.0,0.00018385,2]
[364061173,1748981441145,-229.42821335,0.00018385,2]
[364061174,1748981441155,-160.0,0.00018385,2]
[364061175,1748981441167,-423.63107087,0.00018385,2]
[364061176,1748981441178,-1868.20349476,0.00018471,2]
[364061177,1748981441188,-863.78769645,0.00018555,2]
[364061178,1748981441198,-440.0,0.0001863,2]
[364061179,1748981441211,-359.98306181,0.0001863,2]
[364061180,1748981441221,-440.0,0.0001863,2]
[364061181,1748981441232,-443.46,0.0001863,2]
[364061182,1748981441241,-500.21,0.0001863,2]
[364061183,1748981441251,-440.0,0.0001863,2]
[364061184,1748981441261,-440.0,0.0001863,2]
[364061185,1748981441272,-460.29,0.0001863,2]
[364061186,1748981441282,-637.66,0.0001863,2]
[364061187,1748981441298,-440.0,0.0001863,2]
[364061188,1748981441308,-440.0,0.0001863,2]
[364061189,1748981441318,-863.78769645,0.00018831,2]
[364061190,1748981441328,-440.0,0.00018904,2]
[364061191,1748981441338,-440.0,0.00018904,2]
[364061192,1748981441349,-443.46,0.00018904,2]
[364061193,1748981441359,-500.21,0.00018904,2]
[364061194,1748981441369,-440.0,0.00018904,2]
[364061195,1748981441379,-269.2,0.00018904,2]
[364061196,1748981441389,-460.29,0.00018904,2]
[364061197,1748981441399,-637.66,0.00018904,2]
[364061198,1748981441408,-440.0,0.00018904,2]
[364061199,1748981441419,-440.0,0.00018904,2]
[364061200,1748981441429,-182.59612356,0.0001891,2]
[364061201,1748981441440,-863.78769645,0.00019107,2]
[364061202,1748981441454,-440.0,0.00019178,2]
[364061203,1748981441467,-440.0,0.00019178,2]
[364061204,1748981441478,-443.46,0.00019178,2]
[364061205,1748981441488,-500.21,0.00019178,2]
[364061206,1748981441498,-440.0,0.00019178,2]
[364061207,1748981441508,-460.29,0.00019178,2]
[364061208,1748981441518,-637.66,0.00019178,2]
[364061209,1748981441528,-440.0,0.00019178,2]
[364061210,1748981441538,-440.0,0.00019178,2]
[364061211,1748981441548,-151.0,0.00019178,2]
[364061212,1748981441558,-156.587,0.00019233,2]
[364061213,1748981441568,-162.380719,0.00019288,2]
[364061214,1748981441578,-168.3888056,0.00019343,2]
[364061215,1748981441587,-863.78769645,0.00019383,2]
[364061216,1748981441597,-163.13488058,0.00019398,2]
[364061217,1748981441607,-440.0,0.00019452,2]
[364061218,1748981441617,-440.0,0.00019452,2]
[364061219,1748981441627,-443.46,0.00019452,2]
[364061220,1748981441636,-500.21,0.00019452,2]
[364061221,1748981441646,-440.0,0.00019452,2]
[364061222,1748981441656,-460.29,0.00019452,2]
[364061223,1748981441666,-637.66,0.00019452,2]
[364061224,1748981441675,-440.0,0.00019452,2]
[364061225,1748981441685,-440.0,0.00019452,2]
[364061226,1748981441694,-863.78769645,0.00019659,2]
[364061227,1748981441705,-440.0,0.00019726,2]
[364061228,1748981441714,-440.0,0.00019726,2]
[364061229,1748981441724,-443.46,0.00019726,2]
[364061230,1748981441765,-500.21,0.00019726,2]
[364061231,1748981441774,-440.0,0.00019726,2]
[364061232,1748981441784,-460.29,0.00019726,2]
[364061233,1748981441793,-637.66,0.00019726,2]
[364061234,1748981441803,-440.0,0.00019726,2]
[364061235,1748981441813,-440.0,0.00019726,2]
[364061236,1748981441824,-863.78769645,0.00019934,2]
[364061237,1748981441834,-440.0,0.0002,2]
[364061238,1748981441844,-440.0,0.0002,2]
[364061239,1748981441854,-443.46,0.0002,2]
[364061240,1748981441863,-500.21,0.0002,2]
[364061241,1748981441873,-440.0,0.0002,2]
[364061242,1748981441882,-460.29,0.0002,2]
[364061243,1748981441891,-637.66,0.0002,2]
[364061244,1748981441901,-440.0,0.0002,2]
[364061245,1748981441911,-440.0,0.0002,2]
[364061246,1748981441922,-299.527501,0.00020187,2]
[364061247,1748981441932,-863.78769645,0.0002021,2]
[364061248,1748981441942,-440.0,0.00020273,2]
[364061249,1748981441952,-440.0,0.00020273,2]
[364061250,1748981441963,-443.46,0.00020273,2]
[364061251,1748981441972,-500.21,0.00020273,2]
[364061252,1748981441983,-252.64,0.00020273,2]
[364061253,1748981441993,-460.29,0.00020273,2]
[364061254,1748981442003,-637.66,0.00020273,2]
[364061255,1748981442013,-163.17,0.00020273,2]
[364061256,1748981442023,-440.0,0.00020273,2]
[364061257,1748981442037,-1868.20349476,0.00020331,2]
[364061258,1748981442047,-863.78769645,0.00020486,3]
[364061259,1748981442056,-440.0,0.00020547,2]
[364061260,1748981442066,-378.74,0.00020547,2]
[364061261,1748981442076,-443.46,0.00020547,2]
[364061262,1748981442086,-500.21,0.00020547,2]
[364061263,1748981442095,-500.0,0.00020547,2]
[364061264,1748981442106,-460.29,0.00020547,2]
[364061265,1748981442116,-637.66,0.00020547,2]
[364061266,1748981442125,-440.0,0.00020547,2]
[364061267,1748981442135,-2638.57,0.000206,2]
[364061268,1748981442145,-1117.27,0.000206,2]
[364061269,1748981442154,-863.78769645,0.00020762,3]
[364061270,1748981442163,-440.0,0.00020821,2]
[364061271,1748981442173,-443.46,0.00020821,2]
[364061272,1748981442182,-500.21,0.00020821,2]
[364061273,1748981442192,-460.29,0.00020821,2]
[364061274,1748981442202,-637.66,0.00020821,2]
[364061275,1748981442212,-440.0,0.00020821,2]
[364061276,1748981442223,-3000.0,0.00021,2]
[364061277,1748981442233,-3000.0,0.0002101,2]
[364061278,1748981442243,-3000.0,0.0002102,2]
[364061279,1748981442252,-3000.0,0.0002103,2]
[364061280,1748981442263,-863.78769645,0.00021038,4]
[364061281,1748981442272,-3000.0,0.0002104,2]
[364061282,1748981442281,-3000.0,0.0002105,2]
[364061283,1748981442291,-3000.0,0.0002106,2]
[364061284,1748981442301,-3000.0,0.0002107,2]
[364061285,1748981442311,-3000.0,0.0002108,2]
[364061286,1748981442321,-3000.0,0.0002109,2]
[364061287,1748981442331,-440.0,0.00021095,2]
[364061288,1748981442341,-443.46,0.00021095,2]
[364061289,1748981442351,-500.21,0.00021095,2]
[364061290,1748981442361,-500.0,0.00021095,3]
[364061291,1748981442371,-460.29,0.00021095,2]
[364061292,1748981442381,-637.66,0.00021095,2]
[364061293,1748981442391,-450.63,0.00021095,2]
[364061294,1748981442402,-3000.0,0.000211,2]
[364061295,1748981442413,-3000.0,0.0002111,2]
[364061296,1748981442422,-3000.0,0.0002112,2]
[364061297,1748981442432,-3000.0,0.0002113,2]
[364061298,1748981442442,-3000.0,0.0002114,2]
[364061299,1748981442452,-3000.0,0.0002115,2]
[364061300,1748981442463,-3000.0,0.0002116,2]
[364061301,1748981442472,-3000.0,0.0002117,2]
[364061302,1748981442482,-3000.0,0.0002118,2]
[364061303,1748981442492,-3000.0,0.0002119,2]
[364061305,1748981442502,-3000.0,0.000212,2]
[364061306,1748981442512,-3000.0,0.0002121,2]
[364061307,1748981442522,-3000.0,0.0002122,2]
[364061308,1748981442531,-3000.0,0.0002123,2]
[364061309,1748981442541,-5053.151012,0.0002124,2]
[364061310,1748981442550,-863.78769645,0.00021314,5]
[364061311,1748981442560,-440.0,0.00021369,2]
[364061312,1748981442571,-443.46,0.00021369,2]
[364061313,1748981442580,-500.21,0.00021369,2]
[364061315,1748981442591,-460.29,0.00021369,2]
[364061316,1748981442601,-637.66,0.00021369,2]
[364061317,1748981442611,-182.59612356,0.00021482,2]
[364061318,1748981442620,-405.0,0.00021492,2]
[364061319,1748981442630,-863.78769645,0.0002159,5]
[364061320,1748981442640,-440.0,0.00021643,2]
[364061321,1748981442650,-443.46,0.00021643,2]
[364061322,1748981442661,-500.21,0.00021643,2]
[364061323,1748981442670,-500.0,0.00021643,4]
[364061324,1748981442681,-460.29,0.00021643,2]
[364061325,1748981442691,-637.66,0.00021643,2]
[364061326,1748981442702,-5046.1719631,0.000218,2]
[364061327,1748981442714,-863.78769645,0.00021866,6]
[364061328,1748981442724,-463.19183566,0.00021917,2]
[364061330,1748981442735,-443.46,0.00021917,2]
[364061331,1748981442745,-500.21,0.00021917,2]
[364061332,1748981442756,-460.29,0.00021917,2]
[364061333,1748981442766,-637.66,0.00021917,2]
[364061334,1748981442776,-500.0,0.00021973,2]
[364061335,1748981442787,-151.0,0.00022,7]
[364061336,1748981442798,-240.52938,0.00022,7]
[364061337,1748981442808,-240.52938,0.00022,7]
[364061339,1748981442819,-151.0,0.00022,7]
[364061341,1748981442829,-232.380828,0.00022,7]
[364061342,1748981442839,-232.380828,0.00022,7]
[364061343,1748981442850,-2638.57,0.00022,7]
[364061344,1748981442860,-1117.27,0.00022,7]
[364061345,1748981442871,-37200.06,0.00022,2]
[364061346,1748981442881,-158711.69,0.00022,7]
[364061347,1748981442891,-171.0,0.00022,2]
[364061348,1748981442901,-224.0,0.00022,2]
[364061349,1748981442911,-5000.0,0.00022133,2]
[364061350,1748981442920,-863.78769645,0.00022141,6]
[364061351,1748981442930,-1868.20349476,0.0002219,2]
[364061352,1748981442942,-443.46,0.00022191,2]
[364061353,1748981442952,-500.21,0.00022191,2]
[364061354,1748981442965,-500.0,0.00022191,5]
[364061355,1748981442976,-460.29,0.00022191,2]
[364061356,1748981442986,-637.66,0.00022191,2]
[364061357,1748981442996,-156.305,0.00022258,2]
[364061358,1748981443006,-962.0,0.00022258,2]
[364061359,1748981443017,-709.0,0.00022258,2]
[364061360,1748981443027,-2225.0,0.00022258,2]
[364061361,1748981443041,-863.78769645,0.00022417,7]
[364061362,1748981443051,-443.46,0.00022465,2]
[364061363,1748981443061,-500.21,0.00022465,2]
[364061364,1748981443071,-460.29,0.00022465,2]
[364061365,1748981443082,-637.66,0.00022465,2]
[364061366,1748981443093,-572.6068135,0.00022493,2]
[364061367,1748981443103,-151.0,0.000225,7]
[364061368,1748981443114,-155.59630994,0.00022521,2]
[364061369,1748981443125,-207.4,0.00022659,2]
[364061370,1748981443135,-500.0,0.00022659,2]
[364061371,1748981443145,-500.0,0.00022659,2]
[364061372,1748981443154,-500.0,0.00022659,2]
[364061373,1748981443163,-500.0,0.00022659,2]
[364061374,1748981443174,-500.0,0.00022659,2]
[364061375,1748981443184,-500.0,0.00022659,2]
[364061376,1748981443194,-500.0,0.00022659,2]
[364061377,1748981443206,-500.0,0.00022659,2]
[364061378,1748981443215,-500.0,0.00022659,2]
[364061379,1748981443226,-500.0,0.00022659,2]
[364061380,1748981443236,-500.0,0.00022659,2]
[364061381,1748981443246,-500.0,0.00022659,2]
[364061382,1748981443256,-500.0,0.00022659,2]
[364061383,1748981443267,-446.14358159,0.00022659,2]
[364061384,1748981443277,-151.0,0.00022659,7]
[364061385,1748981443287,-151.0,0.00022659,7]
[364061386,1748981443298,-151.0,0.00022659,7]
[364061387,1748981443308,-151.0,0.00022659,7]
[364061388,1748981443318,-151.0,0.00022659,7]
[364061389,1748981443328,-288.154441,0.00022659,7]
[364061390,1748981443339,-7360.60695664,0.00022667,2]
[364061391,1748981443349,-5000.0,0.00022667,2]
[364061392,1748981443360,-5000.0,0.00022667,2]
[364061393,1748981443371,-5000.0,0.00022667,2]
[364061394,1748981443382,-863.78769645,0.00022693,7]
[364061395,1748981443392,-443.52,0.00022739,2]
[364061396,1748981443403,-500.37,0.00022739,2]
[364061397,1748981443414,-500.0,0.00022739,6]
[364061398,1748981443424,-460.32,0.00022739,2]
[364061399,1748981443434,-637.74,0.00022739,2]
[364061400,1748981443446,-510.45975574,0.00022821,5]
[364061401,1748981443456,-159.79694846,0.00022932,2]
[364061402,1748981443466,-270.544082,0.00022953,2]
[364061403,1748981443476,-863.78769645,0.00022969,8]
[364061404,1748981443486,-1485.05,0.00023,2]
[364061405,1748981443495,-70596.92,0.00023,7]
[364061406,1748981443505,-224.0,0.00023014,7]
[364061407,1748981443514,-259.408792,0.000231,7]
[364061408,1748981443523,-240.52938,0.000231,7]
[364061409,1748981443533,-240.52938,0.000231,7]
[364061410,1748981443542,-151.0,0.000231,7]
[364061411,1748981443552,-232.380828,0.000231,7]
[364061412,1748981443561,-232.380828,0.000231,7]
[364061413,1748981443571,-509.095387,0.00023154,2]
[364061414,1748981443580,-151.0,0.000232,7]
[364061415,1748981443590,-728.7564356,0.00023205,2]
[364061416,1748981443599,-159.79694846,0.00023233,2]
[364061417,1748981443608,-863.78769645,0.00023245,8]
[364061418,1748981443618,-500.0,0.00023287,7]
[364061419,1748981443627,-276.7957783,0.00023315,2]
[364061420,1748981443637,-459.8745855,0.00023315,2]
[364061421,1748981443649,-153.0,0.00023342,2]
[364061423,1748981443658,-153.0,0.00023342,2]
[364061425,1748981443667,-247.0255465,0.00023342,2]
[364061427,1748981443677,-153.0,0.00023342,2]
[364061429,1748981443686,-153.0,0.00023342,2]
[364061431,1748981443696,-153.0,0.00023342,2]
[364061432,1748981443706,-153.0,0.00023342,2]
[364061433,1748981443715,-151.0,0.000234,5]
[364061434,1748981443725,-863.78769645,0.00023521,9]
[364061435,1748981443734,-159.79694846,0.00023534,2]
[364061436,1748981443743,-37200.06,0.000236,2]
[364061437,1748981443752,-158711.69,0.000236,7]
[364061438,1748981443761,-179.684618,0.000236,7]
[364061439,1748981443771,-179.684618,0.000236,7]
[364061440,1748981443779,-741.579054,0.000236,7]
[364061441,1748981443789,-261.059601,0.000236,7]
[364061442,1748981443798,-741.579054,0.000236,7]
[364061443,1748981443807,-223.539625,0.000236,7]
[364061444,1748981443817,-151.0,0.000236,7]
[364061445,1748981443826,-299.947625,0.000236,7]
[364061446,1748981443835,-299.947625,0.000236,7]
[364061447,1748981443844,-151.0,0.000236,7]
[364061448,1748981443855,-250.904194,0.000236,7]
[364061449,1748981443864,-250.904194,0.000236,7]
[364061450,1748981443873,-151.0,0.000236,7]
[364061451,1748981443883,-151.0,0.000236,7]
[364061452,1748981443892,-151.0,0.000236,7]
[364061453,1748981443901,-151.0,0.000236,7]
[364061454,1748981443910,-151.0,0.000236,7]
[364061455,1748981443920,-151.0,0.000236,7]
[364061456,1748981443930,-151.0,0.000236,7]
[364061457,1748981443939,-151.0,0.000236,7]
[364061458,1748981443949,-427.53,0.00023661,8]
[364061459,1748981443958,-275.5,0.00023661,8]
[364061460,1748981443967,-863.78769645,0.00023797,9]
[364061461,1748981443977,-1000.0,0.00023799,3]
[364061462,1748981443986,-1000.0,0.00023799,5]
[364061463,1748981443996,-1000.0,0.00023799,10]
[364061464,1748981444005,-151.0,0.000238,7]
[364061465,1748981444014,-232.380828,0.000238,7]
[364061466,1748981444024,-232.380828,0.000238,7]
[364061467,1748981444035,-2638.57,0.000238,7]
[364061468,1748981444045,-168.21129388,0.000238,2]
[364061469,1748981444054,-500.0,0.00023835,8]
[364061470,1748981444064,-800.0,0.00023899,2]
[364061471,1748981444073,-240.52938,0.000239,7]
[364061472,1748981444083,-240.52938,0.000239,7]
[364061473,1748981444092,-1117.27,0.000239,7]
[364061474,1748981444102,-250.0,0.000239,30]
[364061475,1748981444112,-2200.0,0.00023961,2]
[364061476,1748981444122,-800.0,0.00023983,2]
[364061477,1748981444132,-240.52938,0.00024,7]
[364061478,1748981444143,-240.52938,0.00024,7]
[364061479,1748981444153,-151.0,0.00024,7]
[364061480,1748981444163,-232.380828,0.00024,7]
[364061481,1748981444172,-232.380828,0.00024,7]